Cogmind - Beta 13 X1 @@@ ROGUE MODE // 2023.10.17 @ 14:39:15 Player: f3-rnm Result: Core destroyed Performance ------------- Evolutions (0) 0 Regions Visited (3) 600 Robots Destroyed (29) 145 Value Destroyed (503) 503 Prototype IDs (24) 480 Alien Tech Used (0) 0 Bonus (0) 0 TOTAL SCORE: 1728 Bonus ------- Aligned with FarCom 300 Friendly Fire -300 Cogmind --------- Core Integrity 0/250 Matter 0/300 Energy 100/100 System Corruption 15% Temperature Cool (0) Movement Core (1050) Ox20 Location -10/Exiles Parts ------- > --- POWER (1) -------- Cold Fusion Reactor > --- PROPULSION (2) --- Light Treads Light Treads > --- UTILITY (2) ------ High-capacity Storage Unit Improved Light Armor Plating > --- WEAPON (2) ------- Light Cannon Light Cannon > --- INVENTORY (20) --- Light Treads Light Treads Large Storage Unit Light Armor Plating Light Armor Plating Light Assault Rifle Light Cannon Light Cannon Light Cannon Light Cannon Mini Grenade Launcher Peak State ------------ > --- POWER ------------ Ion Engine > --- PROPULSION ------- Light Treads Light Treads > --- UTILITY ---------- High-capacity Storage Unit Improved Light Armor Plating > --- WEAPON ----------- Light Cannon Field Lobotomy Kit > --- INVENTORY -------- Ion Engine Reinforced Deuterium Engine Light Fission Core Light Fission Core Light Treads Light Treads Light Treads Large Storage Unit Light Armor Plating Light Armor Plating Light Assault Rifle Light Cannon Light Cannon Light Cannon Light Cannon Light Cannon Mini Grenade Launcher Deploy-a-Sentry Deploy-a-Sentry Deploy-a-Sentry [Rating: 23] Favorites ----------- Power Ion Engine Engine Ion Engine Reactor Cold Fusion Reactor Propulsion Light Treads Treads Light Treads Utility High-capacity Storage Unit Storage High-capacity Storage Unit Protection Improved Light Armor Plating Weapon Light Assault Rifle Energy Gun Medium Laser Ballistic Gun Light Assault Rifle Ballistic Cannon Light Cannon Launcher Mini Grenade Launcher Special Weapon Field Lobotomy Kit Build | -11 -10 -10 -10 ------- Run | Jun Mat Min Exi Slots Evolved . | . . . . Power . | . . . . Propulsion . | . . . . Utility . | . . . . Weapon . | . . . . Parts Attached 26 | 6 9 2 9 Power 4 | 1 1 . 2 Engine 3 | 1 1 . 1 Core . | . . . . Reactor 1 | . . . 1 Propulsion 4 | 2 1 . 1 Treads 4 | 2 1 . 1 Leg . | . . . . Wheel . | . . . . Hover . | . . . . Flight . | . . . . Utility 5 | 1 3 1 . Device . | . . . . Storage 3 | 1 2 . . Processor . | . . . . Hackware . | . . . . Protection 2 | . 1 1 . Artifact . | . . . . Weapon 13 | 2 4 1 6 Energy Gun 2 | 2 . . . Energy Cannon . | . . . . Ballistic Gun 3 | . 2 . 1 Ballistic Cannon 3 | . . . 3 Launcher 3 | . 2 1 . Special Weapon 2 | . . . 2 Impact Weapon . | . . . . Slashing Weapon . | . . . . Piercing Weapon . | . . . . Special Melee Weapon . | . . . . Unidentified Prototypes 1 | . . . 1 Parts Lost 2 | . . . 2 Power 1 | . . . 1 Propulsion 1 | . . . 1 Utility . | . . . . Weapon . | . . . . Highest Loss Streak 1 | . . . 1 To Critical Strikes . | . . . . Average Slot Usage (%) 97 | . 96 100 95 Engine 12 | . 14 14 10 Reactor 1 | . . . 3 Treads 27 | . 28 28 27 Storage 14 | . 14 14 14 Protection 13 | . 11 14 14 Energy Gun 2 | . 9 . . Ballistic Gun 11 | . 12 14 9 Ballistic Cannon 4 | . . . 8 Launcher 7 | . 5 14 5 Naked Turns . | . . . . Heaviest Build 61 | 11 52 52 61 Greatest Support 40 | 40 40 40 40 Greatest Overweight (x) 1 | . 1 1 1 Average Overweight (x) . | . . 1 1 Largest Inventory Capacity 20 | 8 20 20 20 Average Capacity 18 | 7 13 20 20 Most Carried 20 | 5 20 20 20 Average Carried 15 | 1 12 20 14 Final Capacity 20 | 8 20 20 20 Final Carried 20 | 1 20 20 11 Class Distribution -------------------- 100% | Mutant Dominant Class ---------------- Mutant | -10/Materials Mutant | -10/Mines Mutant | -10/Exiles Resources | -11 -10 -10 -10 ----------- Run | Jun Mat Min Exi Matter Collected 890 | 233 338 124 195 Remotely . | . . . . Salvage Created 539 | . 448 71 20 Parts 58 | . 27 9 22 Haulers Intercepted 2 | . 2 . . Recyclers Shooed 3 | . 3 . . Parts Field Recycled . | . . . . Retrieved Matter . | . . . . Parts Self-Destructed . | . . . . Prevented . | . . . . Kills | -11 -10 -10 -10 ------- Run | Jun Mat Min Exi Combat Hostiles Destroyed 15 | . 13 2 . Guns 3 | . 3 . . AOE 12 | . 10 2 . Classes Destroyed 8 | . 7 . 1 Worker 4 | . 3 1 . Hauler 2 | . 2 . . Recycler 1 | . 1 . . Operator 1 | . 1 . . Turret 1 | . . . 1 Watcher 3 | . 3 . . Swarmer 6 | . 6 . . Grunt 9 | . 7 2 . Best Kill Streak 13 | . 13 2 2 Combat Bots Only 8 | . 8 2 . Max Kills in Single Turn 2 | . 2 2 1 Gunslinging . | . . . . Exploded 2 | . 2 2 . Melee . | . . . . Uniques/NPCs Destroyed 4 | . . . 4 8R-AWN (-10/Exiles) EX-DEC (-10/Exiles) EX-HEX (-10/Exiles) EX-BIN (-10/Exiles) Combat | -11 -10 -10 -10 -------- Run | Jun Mat Min Exi Damage Taken 1255 | . 331 32 892 Core 253 | . 20 18 215 Absorbed by Shields . | . . . . Core Remaining (%) 100 | 100 . . . Volleys Fired 106 | . 43 5 58 Largest 2 | . 2 1 2 Hottest 80 | . 80 30 70 Shots Fired 188 | . 73 5 110 Gun 68 | . 58 . 10 Cannon 95 | . . . 95 Launcher 20 | . 15 5 . Special 5 | . . . 5 Kinetic 133 | . 28 . 105 Thermal 30 | . 30 . . Explosive 20 | . 15 5 . Electromagnetic . | . . . . Robot Hit Streak 18 | . 10 5 18 Robot Miss Streak 5 | . 5 . 3 Penetration Max . | . . . . Secondary Targets . | . . . . Shots Hit Robots 104 | . 44 3 57 Core Hits 61 | . 38 6 17 Critical Kills . | . . . . Critical Parts Destroyed . | . . . . Critical Strikes 1 | . 1 . . Burn 1 | . 1 . . Melee Attacks . | . . . . Impact . | . . . . Slashing . | . . . . Piercing . | . . . . Sneak Attacks . | . . . . Combat Hostiles . | . . . . Follow-up Attacks . | . . . . Damage Inflicted 2578 | . 1488 289 801 Guns 427 | . 384 . 43 Cannons 705 | . . . 705 Explosions 1387 | . 1098 289 . Melee . | . . . . Ramming 59 | . 6 . 53 Kinetic 872 | . 124 . 748 Thermal 432 | . 432 . . Explosive 1215 | . 926 289 . Electromagnetic . | . . . . Impact . | . . . . Slashing . | . . . . Piercing . | . . . . Highest Corruption 15 | . . . 15 Average Corruption 5 | . . . 5 Corruption Purged . | . . . . Corruption Blocked . | . . . . Effects 23 | . . . 23 Message Errors 10 | . . . 10 Matter Fused 4 | . . . 4 Heat Flow Errors 3 | . . . 3 Energy Discharges 1 | . . . 1 Data Loss (minor) 2 | . . . 2 Data Loss (major) 2 | . . . 2 Misfires 1 | . . . 1 Overload Shots . | . . . . Overflow Damage 114 | . 79 . 35 Projectiles 35 | . . . 35 Explosions 79 | . 79 . . Melee . | . . . . Knockbacks 9 | . . . 9 Impact . | . . . . Kinetic 9 | . . . 9 Secondary . | . . . . Self-Inflicted Damage 91 | . 38 . 53 Shots 1 | . 1 . . Rammed 1 | . 1 . . Targets Rammed 1 | . 1 . . Kicked . | . . . . Crushed . | . . . . Highest Temperature 254 | . 184 6 254 Average Temperature 53 | . 54 4 52 Received Heat Transfer 132 | . 114 18 . Siege Activations . | . . . . Robots Corrupted . | . . . . Combat Hostiles . | . . . . Parts Fried . | . . . . Impact Corruptions . | . . . . Robots Melted . | . . . . Combat Hostiles . | . . . . Parts Melted 3 | . 3 . . Heat Transferred 964 | . 964 . . Parts Sabotaged . | . . . . Parts Stolen . | . . . . Parts Stripped . | . . . . Power Chain Reactions . | . . . . Missiles Intercepted . | . . . . Alert | -11 -10 -10 -10 ------- Run | Jun Mat Min Exi Peak Influence 350 | . 350 74 . Initial 2 | . . 2 . Average 66 | . 125 3 . Maximum Alert Level 1 | . 1 . . Low Security (%) 86 | 100 73 100 . Level 1 13 | . 26 . . Level 2 . | . . . . Level 3 . | . . . . Level 4 . | . . . . Level 5 . | . . . . High Security . | . . . . Max Security . | . . . . Squads Dispatched 4 | . 4 . . Investigation 2 | . 2 . . Extermination . | . . . . Reinforcement 2 | . 2 . . Assault . | . . . . Garrison . | . . . . Intercept . | . . . . Searches Triggered . | . . . . Construction Impeded . | . . . . Haulers Reinforced . | . . . . Active Scanning Responses . | . . . . Cargo Convoy Interrupts . | . . . . Stealth | -11 -10 -10 -10 --------- Run | Jun Mat Min Exi Distress Signals 2 | . 2 . . Communications Jammed . | . . . . Distress Signals . | . . . . Times Spotted 50 | . 23 1 26 Peak Tracking Total 9 | . 7 2 9 Tactical Retreats 3 | . . . 3 Traps | -11 -10 -10 -10 ------- Run | Jun Mat Min Exi Traps Triggered 2 | . 2 . . Indirectly . | . . . . Trap Hack Attempts . | . . . . Triggered . | . . . . Disarmed . | . . . . Reprogrammed . | . . . . Reused . | . . . . Traps Extracted . | . . . . Installed . | . . . . Triggered . | . . . . Machines | -11 -10 -10 -10 ---------- Run | Jun Mat Min Exi Machines Disabled 13 | . 2 1 10 Max in Single Turn 1 | . 1 1 1 Machines Repaired . | . . . . Machines Sabotaged . | . . . . Overloaded Fab Kills . | . . . . Hacking | -11 -10 -10 -10 --------- Run | Jun Mat Min Exi Machines Accessed 3 | . 2 . 1 Terminals 2 | . 2 . . Fabricators . | . . . . Repair Stations . | . . . . Recycling Units . | . . . . Scanalyzers . | . . . . Garrison Access . | . . . . Total Hacks 6 | . 5 . 1 Successful 2 | . 1 . 1 Failed 4 | . 4 . . Catastrophic . | . . . . Database Lockouts . | . . . . Manual 5 | . 4 . 1 Terminals 5 | . 5 . . Fabricators . | . . . . Repair Stations . | . . . . Recycling Units . | . . . . Scanalyzers . | . . . . Garrison Access . | . . . . Terminal Hacks 2 | . 1 . 1 Robot Analysis 1 | . 1 . . Derelict Proto ID Bank 1 | . . . 1 Fabricator Hacks . | . . . . Repair Station Hacks . | . . . . Recycling Unit Hacks . | . . . . Scanalyzer . | . . . . Garrison Access Hacks . | . . . . Unauthorized Hacks . | . . . . Terminals . | . . . . Fabricators . | . . . . Repair Stations . | . . . . Recycling Units . | . . . . Scanalyzers . | . . . . Garrison Access . | . . . . Data Cores Recovered . | . . . . Used . | . . . . Hacking Detections 2 | . 2 . . Full Trace Events . | . . . . Feedback Events . | . . . . Feedback Blocked . | . . . . Robot Schematics Acquired . | . . . . Robots Built . | . . . . Authchips . | . . . . Time . | . . . . Total Robot Build Rating . | . . . . Part Schematics Acquired . | . . . . Parts Built . | . . . . Authchips . | . . . . Time . | . . . . Total Part Build Rating . | . . . . Parts Repaired . | . . . . Time . | . . . . Parts Recycled . | . . . . Recycled Matter . | . . . . Retrieved Matter . | . . . . Retrieved Components . | . . . . Parts Scanalyzed . | . . . . Part Schematics Acquired . | . . . . Parts Damaged . | . . . . Bothacking | -11 -10 -10 -10 ------------ Run | Jun Mat Min Exi Used RIF Installer . | . . . . Robots Hacked . | . . . . Non-combat . | . . . . Combat . | . . . . Robot Hacks Applied . | . . . . Relay Couplers Released . | . . . . Fabnet Peak Effective % . | . . . . Robots Rewired . | . . . . Allies Hacked . | . . . . Hacks Repelled . | . . . . Allies | -11 -10 -10 -10 -------- Run | Jun Mat Min Exi Total Allies 5 | . . . 5 Largest Group 2 | . . . 2 Highest-Rated Group 36 | . . . 36 Highest-Rated Ally 36 | . . . 36 Total Orders 1 | . . . 1 STAY 1 | . . . 1 Ally Attacks 37 | . . . 37 Total Damage 1856 | . . . 1856 Kills 10 | . . . 10 Allies Corrupted . | . . . . Allies Melted . | . . . . Turrets Deployed 4 | . . . 4 Field Lobotomies 5 | . . . 5 Intel | -11 -10 -10 -10 ------- Run | Jun Mat Min Exi Robot Analysis Total 1 | . 1 . . Derelict Logs Recovered 2 | . . 2 . Drone Launches . | . . . . Drone Recoveries . | . . . . Exploration | -11 -10 -10 -10 ------------- Run | Jun Mat Min Exi Turns Passed 6533 | 75 1740 1525 3193 Spaces Moved 2629 | 47 844 557 1181 Core 12 | 12 . . . Treads 2617 | 35 844 557 1181 Legs . | . . . . Wheels . | . . . . Hover . | . . . . Flight . | . . . . Fastest Speed 50 | 50 160 240 240 Average Speed 221 | 131 187 240 240 Slowest Speed 240 | 160 240 240 240 Overloaded Moves . | . . . . Propulsion Burnouts . | . . . . Robots Hopped 1 | . . . 1 Cave-ins Triggered . | . . . . Exploration Rate (%) 71 | 3 94 97 91 Regions Visited 3 Branch Regions 2 Pre-discovered Areas 1 | . . 1 . Known Exits Taken . | . . . . Unknown Exits Taken 3 | 1 1 1 . Scrap Searched 1 | . . 1 . Spaces Dug 4 | . 4 . . Terrain Destroyed 107 | . 68 39 . Melee . | . . . . Projectile . | . . . . AOE 107 | . 68 39 . Terrain Rammed 17 | . . . 17 Walls Destroyed . | . . . . Machines Disabled . | . . . . Actions | -11 -10 -10 -10 --------- Run | Jun Mat Min Exi Total 3082 | 60 937 744 1341 Wait 239 | 1 13 177 48 Move 2624 | 46 843 556 1179 Hop 1 | . . . 1 Pick Up 42 | 7 22 1 12 Fast Attach 2 | . 2 . . Attach 11 | 6 1 . 4 Detach . | . . . . Swap 13 | . 6 2 5 Drop 27 | . 6 3 18 Fire 106 | . 43 5 58 Melee . | . . . . Ram 16 | . . . 16 Kick . | . . . . Crush 1 | . 1 . . Escape Stasis . | . . . . Rewire . | . . . . Trap . | . . . . Miscellaneous . | . . . . Route ------- -11/Junkyard -10/Materials (discovered 5 exits: [*Mat x3] / [*Min] / [*Sub]) -10/Mines (discovered 3 exits: [*Mat x2] / *Exi) -10/Exiles (discovered 2 exits: [*Min x2]) History --------- Turn | Location | Event 5 | -11/Junkyard | Discovered new exit (range 15) 76 | -11/Junkyard | Entered Materials 244 | -10/Materials | Destroyed 8 combat bots 309 | -10/Materials | Build established: Mutant 751 | -10/Materials | Discovered new exit (range 12) 1061 | -10/Materials | Discovered new exit (range 14) 1631 | -10/Materials | Discovered new exit (range 13) 1633 | -10/Materials | Discovered new exit (range 16) 1777 | -10/Materials | Discovered new exit (range 8) 1816 | -10/Materials | Entered Mines 1877 | -10/Mines | Assembled infested the area 2501 | -10/Mines | Found a hidden stash of uninstalled traps 2605 | -10/Mines | Discovered new exit (range 10) 2683 | -10/Mines | Learned Materials security intel 2762 | -10/Mines | Discovered new exit (range 10) 3332 | -10/Mines | Discovered new exit (range 5) 3341 | -10/Mines | Entered Exiles 3406 | -10/Exiles | Met 8R-AWN 3437 | -10/Exiles | Met EX-HEX 3509 | -10/Exiles | Met EX-BIN 3538 | -10/Exiles | Aligned with FarCom system 3541 | -10/Exiles | Given EX-Vault access code 3596 | -10/Exiles | Opened EX-Vault 3658 | -10/Exiles | Warned to stay clear of 0b10 Research branches 3735 | -10/Exiles | Met EX-DEC 3877 | -10/Exiles | Discovered new exit (range 14) 4270 | -10/Exiles | Discovered new exit (range 15) 4510 | -10/Exiles | Found Deploy-a-Sentry 4513 | -10/Exiles | Found Deploy-a-Sentry 4516 | -10/Exiles | Found Deploy-a-Sentry 4547 | -10/Exiles | Found Field Lobotomy Kit 4761 | -10/Exiles | Attacked by the Exiles 4793 | -10/Exiles | Assimilated as-59445 with FLK Orb 4796 | -10/Exiles | Assimilated as-55312 with FLK Orb 4799 | -10/Exiles | Assimilated as-65600 with FLK Orb 4804 | -10/Exiles | Assimilated as-54922 with FLK Orb 4826 | -10/Exiles | DAS Turret deployed 4829 | -10/Exiles | DAS Turret deployed 4832 | -10/Exiles | DAS Turret deployed 4880 | -10/Exiles | Allies destroyed 8R-AWN 4962 | -10/Exiles | Core integrity fell below 50% 4962 | -10/Exiles | Assimilated DAS Turret with FLK Orb 5704 | -10/Exiles | Core integrity fell below 20% 5716 | -10/Exiles | Destroyed EX-DEC 5741 | -10/Exiles | Found Deploy-a-Sentry 5788 | -10/Exiles | Destroyed EX-HEX 5791 | -10/Exiles | Destroyed EX-BIN 6344 | -10/Exiles | DAS Turret deployed 6437 | -10/Exiles | System corruption reached 10% 6534 | -10/Exiles | Core destroyed Last Messages --------------- 06446_ Rammed FarCom Aligner. 06446_ Destabilizing: System corrupted (+1). 06450_ Rammed FarCom Aligner. 06450_ Lgt. Treads broken. 06450_ Destabilizing: Short circuit. 06461_ Slammed into FarCom Aligner. 06461_ Destabilizing: System corrupted (+1). 06462_ M D2|AYACY7O|69BIMFL=72CMQYAW&AH 06486_ B|LOVYYNZS:YVCWS1HT0JN4 06492_ Slammed into FarCom Aligner. 06492_ Destabilizing: System corrupted (+1). 06503_ Slammed into FarCom Aligner. 06503_ Destabilizing: System corrupted (+1). 06513_ Slammed into FarCom Aligner. 06519_ System corrupted: Heat flow error (+115). 06524_ Slammed into FarCom Aligner. 06534_ Q <&,AL8DKST4TO>A6V| VVJ=FH 06534_ Slammed into FarCom Aligner. 06534_ Destabilizing: Core damaged (-12). Map ----- +----------------------------------------------------+ | ?????????????#########???????????????????????????? | | ?????????????# #???????????????????????????? | | ?????????????# #???????????????????????????? | | ?????????????#== #???????????????????????????? | | ?????????????# X#???????????????????????????? | | ?????????????## ##???????????????????????????? | | ?????????????#X t #????????????????????????????? | | ?????????????## #????????????????????????????? | | ??????????????# ! #????????????????????????????? | | ??????????????# #???####?????????????????????? | | ??????????????# #??"""""#????????????????????? | | ??????????????# ## """#????????????????????? | | ??????????????# X""#????????????????????? | | ??????????????# ## """#????????????????????? | | ???????#####??# #??"""""#????????????????????? | | ???????""""""?# #???####?????????????????????? | | ???????"""" ## #????????????????????????????? | | ??????#""X" #????????????????????????????? | | ??????#" #????????????????????????????? | | ??????#" ## #????????????????????????????? | | ??????#""""""?# #?#########??????????????????? | | ??????##"###??# #?#"""""""#??????????????????? | | ??????? ??????# #?#"""""""#??????????????????? | | ??????????????# #?#"""""""#??????????????????? | | ?????????????## ###"" """"#??????????????????? | | ?????????????#" @""""#??????????????????? | | ?????????????#" """#??????????????????? | | ?????????????#" """#??????????????????? | | ?????????????#" """#??????????????????? | | ######???????#" """#??????????????????? | | """#???????#" """#??????????????????? | | " """#???????## """"??????????????????? | | " #????????# """#??????????????????? | | " #????????#" "X" """"??????????????????? | | " "#????????#" """ #??????????????????? | | ""#????????#" """""""""#??????????????????? | | " ""#???????##" ###########??????????????????? | | # ###??????##"" #????????????????????????????? | | # ###?######"" #????????????????????????????? | | # #"###""""""" ##???????????????????????????? | | """""" " "" ##???###########????????????? | | "" """ #####"""""""""##???????????? | | " " " """ """"##??????????? | | "" " #??????????? | | " """#??????????? | | " "#??????????? | | " "##?????????# | | ""###???????# | | """""" """#??????## | | ######""" "#????### | +----------------------------------------------------+ Best States ------------- Heat Dissipation 25 Energy Generation 17 Energy Capacity 250 Matter Stores 300 Matter Capacity 300 Sight Range 16 Terrain Scan Density 10 Armor Coverage 150 Evasion (%) 50 Recoil Reduction 2 Item Schematics ----------------- None Robot Schematics ------------------ None Fabricated ------------ Nothing Alien Tech Used ----------------- None Achievements -------------- None Challenges ------------ None Game ------ Seed CloakingBarrageScrap Manual? 0 Play Time 00:22:55 Cumulative 103.6 hours Start 2023.10.17 @ 13:45:04 End 2023.10.17 @ 14:39:15 Sessions 1 Manual Loads 0 Difficulty Rogue Special Mode None Game No. 108 Rogue 72 Adventurer 36 Explorer 0 Win Type - Total 7 Types 2/0/5/0/0/0/0/0/0 Lore% 50 Gallery% 72 Achievement% 61 Wizard Run 0 Options --------- ASCII 0 Keyboard 0 Movement Mouse Keybinds 0 Fullscreen 1 Font 18/SmallcapsGlow Map View 76x50 Tactical HUD 1 Map Filters NONE Filters NONE Steam 1 RUN: 35fd2fe6-4e69-4cf9-809f-c2e9bdf5392c